{"text_format":"1","workbook":"xlsx","n_sheets":1,"sheets":["Wniosek"],"not_rendered":{"charts":0,"images":1,"macros":1,"external_links":0,"defined_names":1,"comments":0,"pivot_tables":0},"unopened":[],"bounds":{"document_bytes":16777216,"sheet_cells":100000,"rows_first":2000,"rows_last":500,"rows_between":2000,"halvings":0,"cell_chars":16384,"cell_head_chars":4096},"cells_cut":0,"cells_raw":0,"read":"whole","date_system":"1900"}

{"sheet":"Wniosek","index":0,"n_rows":44,"n_cols":11,"rows_kept":44,"cut":false,"hidden":false,"merged":[[41,0,42,2],[24,0,24,4],[25,6,25,8],[25,0,26,0],[30,3,30,4],[25,5,26,5],[36,0,36,5],[39,0,39,2],[39,5,39,8],[40,6,40,7],[37,7,37,8],[29,3,29,4],[25,1,26,1],[25,2,26,2],[25,3,26,4],[24,6,24,8],[9,1,9,8],[12,7,12,8],[13,1,13,2],[13,3,13,5],[12,3,12,4],[5,0,5,8],[21,6,21,8],[10,1,10,8],[18,1,18,2],[18,3,18,5],[19,1,19,2],[19,3,19,5],[18,0,21,0],[11,1,11,2],[11,3,11,4],[14,1,14,2],[16,2,16,3],[14,3,14,5],[7,0,7,8],[21,1,21,5],[8,0,8,8],[22,0,22,8],[12,5,12,6],[18,6,18,8],[19,6,19,8],[20,1,20,5],[20,6,20,8],[17,1,17,8],[15,6,15,7],[15,4,15,5],[16,4,16,5],[16,6,16,7],[15,2,15,3],[11,0,16,0],[41,5,42,8],[43,6,43,7],[23,4,23,8],[0,7,0,8],[27,3,27,4],[28,3,28,4],[37,0,37,6],[1,0,1,8],[2,0,2,8],[3,0,3,8],[4,0,4,8],[6,0,6,8],[23,0,23,3],[11,5,11,6],[12,1,12,2],[11,7,11,8]]}
[null,null,null,null,null,null,null,"załącznik nr 4 do umowy "]
[null,null,null,null,null,null,null,null,null,null,"wybierz z listy"]
["Wykaz niezbędnych urządzeń cyfrowych, pomocy dydaktycznych  oraz oprogramowania w celu dokonania przez szkoły transformacji cyfrowej \nMałopolska Tarcza Antykryzysowa – Pakiet Edukacyjny. Cyfryzacja szkół i placówek oświatowych",null,null,null,null,null,null,null,null,null,"JST"]
["W RAMACH  10 OSI PRIORYTETOWEJ WIEDZA I KOMPETENCJE ",null,null,null,null,null,null,null,null,null,"organizacja pozarządowa"]
["Działanie 10.1 ROZWÓJ KSZTAŁCENIA OGÓLNEGO\nPoddziałanie 10.1.6  Cyfryzacja szkół prowadzących kształcenie ogólne  typ A. granty na zakup sprzętu do nauki zdalnej – Małopolska Tarcza Antykryzysowa – Pakiet Edukacyjny\nRegionalny Program Operacyjny Województwa Małpolskiego na lata 2014-2020\n",null,null,null,null,null,null,null,null,null,"jednostka administracji rządowej"]
["UWAGA ! Pola szare są zablokowane do edycji  ",null,null,null,null,null,null,null,null,null,"placówka systemu oświaty"]
["UWAGA !  Należy wypełnić tylko pola zaznaczone na żółto",null,null,null,null,null,null,null,null,null,"inne"]
["Uwaga! Pola pomarańczowe liczą się automatycznie"]
["1. Informacje o Wnioskodawcy"]
["Nazwa Wnioskodawcy"]
["Typ instytucji","wybierz z listy",null,null,null,null,null,null,null,null,{"$f":"CONCATENATE(B10,\" \",TEXT(#REF!,\"dd-mm-rrrr\"),\" \",TEXT(#REF!,\"gg:mm:ss\"),)","v":{"$error":"#REF!"}}]
["Dane wnioskodawcy","Kraj↓",null,"Województwo↓",null,"Powiat↓",null,"Gmina↓"]
[]
[null,"Miejscowość ↓",null,"Ulica↓",null,null,"Kod pocztowy↓","Nr budynku↓","Numer lokalu↓"]
[]
[null,"Regonâ","KRS â",null,"Telefon kontaktowy↓",null,"NIP â",null,"Obszar wg stopnia urbanizacji (DEGURBA)↓",null,"TAK"]
[null,null,null,null,null,null,null,null,null,null,"NIE"]
["Adres e-mail"]
["Osoba do kontaktów roboczych","Imię↓",null,"Nazwisko↓",null,null,"Stanowisko↓"]
[]
[null,"Adres e-mail↓",null,null,null,null,"Telefon↓"]
[]
["2.  Planowany do zakupienia sprzęt komputerowy - budżet"]
["Nazwa szkoły, do której przekazany zostanie sprzęt, pomocey dydaktyczne, oprogramowanie:"]
["Posiadam możliwość odzyskania VAT w zakresie wydatków ponoszonych w ramach zadania grantowego (TAK/NIE)",null,null,null,null,"NIE"]
["Lp.","Rodzaj sprzętu (TIK)","Cena jednostkowa (netto)","Jednostka miary (sztuka, umowa itp.)",null,"ilość","Planowany budżet zadania grantowego"]
[null,null,null,null,null,null,"Netto (cena jednostkowa x ilość)","VAT (0 %, inna stawka lub zwolniony)","Brutto"]
["1.","Komputery przenośne (laptopy)",null,null,null,null,{"$f":"C28*F28","v":0},null,{"$f":"IFERROR(G28*(1+H28),G28)","v":0}]
["2.","Urządzenia ekranowe (smartfony, tablety, czytniki)",null,null,null,null,{"$f":"C29*F29","v":0},null,{"$f":"IFERROR(G29*(1+H29),G29)","v":0}]
["3.","Urządzenia audio – video np. kamery cyfrowe z wyposażeniem wspomagającym typu gimball, statywy, oświetlenie, blendy, głośniki mobilne bezprzewodowe",null,null,null,null,0,null,0]
["4.","Projektory multimedialne, w tym piko projektory i projektory krótkoogniskowe do tablic multimedialnych oraz ekrany",null,null,null,null,0,null,0]
["5.","Tablice interaktywne wraz z oprzyrządowaniem typu stojak mobilny",null,null,null,null,0,null,0]
["6.","Urządzenia do realizacji zajęć edukacyjnych w Rzeczywistości Wirtualnej/ Rozszerzonej (VR/AR) oprogramowania edukacyjnego",null,null,null,null,0,null,0]
["7.","ubezpieczenia zakupionego sprzętu komputerowego;",null,null,null,null,0,null,0]
["8.","Oprogramowanie ",null,null,null,null,0,null,0]
["9.","Pomocy dydaktycznych ( w tym dostep do platform/serwisów)",null,null,null,null,0,null,0]
["Łącznie",null,null,null,null,null,{"$f":"SUM(G28:G36)","v":0},null,0]
["Wnioskowana kwota \nUwaga !  Jeśli  możesz odzyskać VAT,  to wykazujesz i rozliczasz  kwoty Netto (VAT jest niekwalifikowany), jeśli  nie możesz odzyskać VAT, to wykazujesz i rozliczasz kwoty Brutto (VAT jest kwalifikowany)",null,null,null,null,null,null,{"$f":"IF(F25=\"TAK\",G37,I37)","v":0}]
[]
[]
[null,"data",null,null,null,null,"podpis Wnioskodawcy"]
[]
[]
[null,"data",null,null,null,null,"podpis przedstawiciela Stowarzyszenia Miasta w Internecie"]